[Event "94th FRA-ch Open B 2019"]
[Site "Chartres"]
[Date "2019.08.25"]
[Round "9.1"]
[White "Bosc, Gabriel"]
[Black "Delin, Valere"]
[Result "0-1"]
[ECO "A03"]
[WhiteElo "1893"]
[BlackElo "1866"]
[Annotator "NA"]
[PlyCount "98"]
[EventDate "2019.08.17"]
[EventType "swiss"]
[EventCountry "FRA"]
[SourceTitle "playchess.com"]
[Source "ChessBase"]
[SourceQuality "1"]
[TimeControl "40/5400+30:1800+30"]

1. f4 {[%emt 0:00:00]} c5 {[%emt 0:00:00]} 2. Nf3 {[%emt 0:00:00]} d5 {[%emt 0:00:38]} 3. b3 {[%emt 0:00:12]} Nf6 {[%emt 0:00:15]} 4. Bb2 {[%emt 0:00:06]} g6 {[%emt 0:00:34]} 5. e3 {[%emt 0:02:16]} Bg7 {[%emt 0:00:28]} 6. Bd3 {[%emt 0:01:55]} Nc6 {[%emt 0:01:03]} 7. O-O {[%emt 0:00:48]} O-O {[%emt 0:00:16]} 8. Nc3 {[%emt 0:04:28]} a6 {[%emt 0:00:35]} 9. Qc1 {[%emt 0:02:46]} Nb4 {[%emt 0:05:34]} 10. Re1 {[%emt 0:04:34]} Nxd3 {[%emt 0:07:37]} 11. cxd3 {[%emt 0:00:05]} b5 {[%emt 0:05:06]} 12. a4 {[%emt 0:21:39]} d4 {[%emt 0:11:31]} 13. Ne4 {[%emt 0:06:20]} dxe3 {[%emt 0:08:16]} 14. dxe3 {[%emt 0:00:59]} bxa4 {[%emt 0:11:09]} 15. Nxc5 {[%emt 0:05:54]} axb3 {[%emt 0:00:33]} 16. Bxf6 {[%emt 0:00:51]} Bxf6 {[%emt 0:00:36]} 17. d4 {[%emt 0:00:04]} Qd5 {[%emt 0:03:01]} 18. Qa3 {[%emt 0:04:17]} Bg4 {[%emt 0:08:11]} 19. Ne5 {[%emt 0:04:32]} Bxe5 {[%emt 0:01:54]} 20. fxe5 {[%emt 0:00:04]} Rfb8 {[%emt 0:02:01]} 21. Rab1 {[%emt 0:00:30]} Be6 {[%emt 0:02:11]} 22. Red1 {[%emt 0:03:01]} Qc4 {[%emt 0:02:38]} 23. e4 {[%emt 0:09:45]} a5 {[%emt 0:04:48]} 24. Rd2 {[%emt 0:06:04]} a4 {[%emt 0:01:27]} 25. d5 {[%emt 0:00:53]} Bc8 {[%emt 0:02:28]} 26. d6 {[%emt 0:03:11]} exd6 {[%emt 0:00:42]} 27. exd6 {[%emt 0:00:08]} Qb4 {[%emt 0:03:40]} 28. Qxb4 {[%emt 0:01:54]} Rxb4 {[%emt 0:00:08]} 29. d7 {[%emt 0:16:27]} Bxd7 {[%emt 0:00:03]} 30. Rxd7 {[%emt 0:00:05]} a3 {[%emt 0:00:19]} 31. Nxb3 {[%emt 0:01:06]} a2 {[%emt 0:00:16]} 32. Ra1 {[%emt 0:00:11]} Rxb3 {[%emt 0:00:08]} 33. Rdd1 {[%emt 0:00:04]} Rb2 {[%emt 0:00:16]} 34. Rac1 {[%emt 0:01:20]} Re2 {[%emt 0:00:31]} 35. Kf1 {[%emt 0:00:24]} Rxe4 {[%emt 0:00:08]} 36. Ra1 {[%emt 0:00:05]} Rb4 {[%emt 0:00:16]} 37. Kf2 {[%emt 0:00:21]} Ra3 {[%emt 0:00:22]} 38. Rd2 {[%emt 0:01:05]} Rba4 {[%emt 0:00:25]} 39. g3 {[%emt 0:00:25]} Kg7 {[%emt 0:19:26]} 40. Rd6 Ra5 {[%emt 0:00:00]} 41. Rc6 {[%emt 0:31:02]} Kh6 {[%emt 0:13:17]} 42. Kg2 {[%emt 0:00:06]} f5 {[%emt 0:00:30]} 43. Rd6 {[%emt 0:00:00]} R5a4 {[%emt 0:00:00]} 44. Rd2 {[%emt 0:00:00]} Kg5 {[%emt 0:00:00]} 45. Rd5 {[%emt 0:00:00]} h5 {[%emt 0:00:00]} 46. Rc5 {[%emt 0:00:00]} h4 {[%emt 0:00:00]} 47. Rc6 {[%emt 0:00:00]} hxg3 {[%emt 0:00:00]} 48. hxg3 {[%emt 0:00:00]} Ra6 {[%emt 0:00:00]} 49. Rc4 {[%emt 0:00:00]} R3a4 {[%emt 0:00:00]} 0-1

[Event "94th FRA-ch Open B 2019"]
[Site "Chartres"]
[Date "2019.08.25"]
[Round "9.2"]
[White "Lucbernet, Thomas"]
[Black "Grange, Julien"]
[Result "0-1"]
[ECO "D45"]
[WhiteElo "1873"]
[BlackElo "1894"]
[Annotator "NA"]
[PlyCount "132"]
[EventDate "2019.08.17"]
[EventType "swiss"]
[EventCountry "FRA"]
[SourceTitle "playchess.com"]
[Source "ChessBase"]
[SourceQuality "1"]
[TimeControl "40/5400+30:1800+30"]

1. d4 {[%emt 0:00:05]} d5 {[%emt 0:00:00]} 2. c4 {[%emt 0:00:12]} c6 {[%emt 0:00:04]} 3. Nf3 {[%emt 0:00:39]} Nf6 {[%emt 0:00:36]} 4. Nc3 {[%emt 0:00:26]} e6 {[%emt 0:02:22]} 5. e3 {[%emt 0:00:15]} a6 {[%emt 0:03:03]} 6. Qc2 {[%emt 0:06:36]} Bd6 {[%emt 0:01:53]} 7. a4 {[%emt 0:10:09]} a5 {[%emt 0:03:18]} 8. Be2 {[%emt 0:03:04]} Na6 {[%emt 0:01:04]} 9. O-O {[%emt 0:01:13]} O-O {[%emt 0:07:43]} 10. e4 {[%emt 0:04:46]} Nxe4 {[%emt 0:01:13]} 11. Nxe4 {[%emt 0:00:18]} dxe4 {[%emt 0:00:05]} 12. Qxe4 {[%emt 0:00:44]} c5 {[%emt 0:00:50]} 13. Bg5 {[%emt 0:11:49]} Qc7 {[%emt 0:01:15]} 14. Bd3 {[%emt 0:10:47]} f5 {[%emt 0:02:27]} 15. Qh4 {[%emt 0:08:01]} Nb4 {[%emt 0:01:29]} 16. Bb1 {[%emt 0:01:14]} h6 {[%emt 0:08:41]} 17. Bd2 {[%emt 0:01:57]} Be7 {[%emt 0:00:27]} 18. Qg3 {[%emt 0:04:39]} Qxg3 {[%emt 0:01:21]} 19. hxg3 {[%emt 0:00:10]} cxd4 {[%emt 0:00:34]} 20. Nxd4 {[%emt 0:03:40]} Bf6 {[%emt 0:00:16]} 21. Bc3 {[%emt 0:01:19]} Rd8 {[%emt 0:01:36]} 22. Nb5 {[%emt 0:00:59]} Bxc3 {[%emt 0:01:16]} 23. bxc3 {[%emt 0:01:52]} Na6 {[%emt 0:00:19]} 24. c5 {[%emt 0:00:45]} Nxc5 {[%emt 0:01:04]} 25. Ba2 {[%emt 0:00:38]} Kf8 {[%emt 0:02:51]} 26. Rfe1 {[%emt 0:03:18]} Ke7 {[%emt 0:02:48]} 27. Bc4 {[%emt 0:04:45]} Kf6 {[%emt 0:02:46]} 28. Nc7 {[%emt 0:06:40]} Rb8 {[%emt 0:02:15]} 29. Re3 {[%emt 0:05:32]} Bd7 {[%emt 0:08:07]} 30. Rae1 {[%emt 0:02:13]} Rbc8 {[%emt 0:00:23]} 31. Nxe6 {[%emt 0:01:40]} Bxe6 {[%emt 0:00:08]} 32. Bxe6 {[%emt 0:00:23]} Rc6 {[%emt 0:00:08]} 33. Bc4 {[%emt 0:02:10]} Ne4 {[%emt 0:00:23]} 34. Bb3 {[%emt 0:01:19]} Rdd6 {[%emt 0:00:29]} 35. f3 {[%emt 0:01:45]} Nxc3 {[%emt 0:02:20]} 36. Re7 {[%emt 0:00:27]} Rb6 {[%emt 0:00:57]} 37. Bg8 {[%emt 0:00:49]} Rd1 {[%emt 0:01:21]} 38. Rf7+ {[%emt 0:00:56]} Kg6 {[%emt 0:00:12]} 39. Rxd1 {[%emt 0:00:27]} Nxd1 {[%emt 0:00:07]} 40. Rd7 {[%emt 0:00:25]} Nc3 {[%emt 0:00:25]} 41. Kf2 {[%emt 0:12:59]} Nxa4 {[%emt 0:08:19]} 42. Ke3 {[%emt 0:00:18]} Nc5 {[%emt 0:02:57]} 43. Rd5 {[%emt 0:00:46]} Nb3 {[%emt 0:00:21]} 44. Kd3 {[%emt 0:01:55]} a4 {[%emt 0:01:56]} 45. Kc3 {[%emt 0:00:15]} Kf6 {[%emt 0:04:09]} 46. Kb2 {[%emt 0:02:58]} Nd2+ {[%emt 0:05:43]} 47. Ka2 {[%emt 0:08:41]} Nb1 {[%emt 0:05:02]} 48. Rc5 {[%emt 0:00:40]} g6 {[%emt 0:12:57]} 49. Rc2 {[%emt 0:01:18]} Ke5 {[%emt 0:01:25]} 50. Rc4 {[%emt 0:01:51]} g5 {[%emt 0:09:39]} 51. f4+ {[%emt 0:00:26]} gxf4 {[%emt 0:00:31]} 52. gxf4+ {[%emt 0:00:06]} Kf6 {[%emt 0:00:42]} 53. Rc2 {[%emt 0:00:09]} Kg6 {[%emt 0:01:10]} 54. Bd5 {[%emt 0:02:31]} Kh5 {[%emt 0:01:17]} 55. Rc1 {[%emt 0:00:50]} Nd2 {[%emt 0:00:43]} 56. Ka3 {[%emt 0:00:48]} Kg4 {[%emt 0:01:08]} 57. Kxa4 {[%emt 0:01:28]} Kxf4 {[%emt 0:00:26]} 58. Rc3 {[%emt 0:01:03]} Ne4 {[%emt 0:00:48]} 59. Rc4 {[%emt 0:00:38]} Ke5 {[%emt 0:00:25]} 60. Bg8 {[%emt 0:00:20]} Rb2 {[%emt 0:00:16]} 61. Rc7 {[%emt 0:00:44]} Rxg2 {[%emt 0:00:17]} 62. Bh7 {[%emt 0:00:21]} Nd6 {[%emt 0:03:58]} 63. Rc3 {[%emt 0:00:42]} f4 {[%emt 0:01:04]} 64. Kb4 {[%emt 0:00:34]} b6 {[%emt 0:00:29]} 65. Rh3 {[%emt 0:00:24]} Nf7 {[%emt 0:02:04]} 66. Bb1 {[%emt 0:00:31]} Rb2+ {[%emt 0:00:34]} 0-1

[Event "94th FRA-ch Open B 2019"]
[Site "Chartres"]
[Date "2019.08.25"]
[Round "9.3"]
[White "Navrotescu, Vlad-Andrei"]
[Black "Antoine, Jean-Luc"]
[Result "0-1"]
[ECO "A45"]
[WhiteElo "1943"]
[BlackElo "1959"]
[Annotator "NA"]
[PlyCount "86"]
[EventDate "2019.08.17"]
[EventType "swiss"]
[EventCountry "FRA"]
[SourceTitle "playchess.com"]
[Source "ChessBase"]
[SourceQuality "1"]
[TimeControl "40/5400+30:1800+30"]

1. d4 {[%emt 0:00:00]} Nf6 {[%emt 0:00:00]} 2. Bf4 {[%emt 0:00:00]} d6 {[%emt 0:01:14]} 3. Nc3 {[%emt 0:00:00]} Bf5 {[%emt 0:01:27]} 4. f3 {[%emt 0:01:50]} Bg6 {[%emt 0:01:55]} 5. e4 {[%emt 0:00:53]} e6 {[%emt 0:02:38]} 6. Qd2 {[%emt 0:00:46]} c6 {[%emt 0:02:08]} 7. O-O-O {[%emt 0:00:43]} d5 {[%emt 0:05:45]} 8. e5 {[%emt 0:00:21]} Nfd7 {[%emt 0:00:14]} 9. h4 {[%emt 0:00:29]} h5 {[%emt 0:01:44]} 10. g4 {[%emt 0:00:07]} Be7 {[%emt 0:01:11]} 11. Bd3 {[%emt 0:02:24]} Bxd3 {[%emt 0:01:31]} 12. Qxd3 {[%emt 0:00:53]} g6 {[%emt 0:00:38]} 13. Nh3 {[%emt 0:04:52]} Bxh4 {[%emt 0:05:47]} 14. g5 {[%emt 0:31:17]} Nf8 {[%emt 0:01:26]} 15. Rdg1 {[%emt 0:00:58]} Nh7 {[%emt 0:00:43]} 16. Rg2 {[%emt 0:00:15]} Nd7 {[%emt 0:05:39]} 17. Qd2 {[%emt 0:00:55]} b5 {[%emt 0:07:32]} 18. Ng1 {[%emt 0:00:29]} Bxg5 {[%emt 0:01:02]} 19. Bxg5 {[%emt 0:00:05]} Nxg5 {[%emt 0:00:11]} 20. Rxg5 {[%emt 0:02:56]} a5 {[%emt 0:04:44]} 21. Nh3 {[%emt 0:01:28]} a4 {[%emt 0:00:25]} 22. Qd3 {[%emt 0:05:54]} Qe7 {[%emt 0:01:12]} 23. Rhg1 {[%emt 0:00:51]} b4 {[%emt 0:04:50]} 24. Ne2 {[%emt 0:00:24]} Nb6 {[%emt 0:00:53]} 25. Nhf4 {[%emt 0:00:18]} Rf8 {[%emt 0:10:08]} 26. R5g2 {[%emt 0:07:38]} Kd7 {[%emt 0:05:17]} 27. Kb1 {[%emt 0:00:54]} Nc4 {[%emt 0:01:58]} 28. Nc1 {[%emt 0:00:31]} Rfb8 {[%emt 0:03:31]} 29. Qe2 {[%emt 0:16:55]} b3 {[%emt 0:16:07]} 30. cxb3 {[%emt 0:00:30]} a3 {[%emt 0:02:17]} 31. Nfd3 {[%emt 0:00:55]} axb2 {[%emt 0:01:23]} 32. Nxb2 {[%emt 0:00:05]} Na3+ {[%emt 0:01:21]} 33. Ka1 {[%emt 0:00:00]} Nb5 {[%emt 0:00:55]} 34. Na4 {[%emt 0:05:02]} Nxd4 {[%emt 0:02:54]} 35. Qf2 {[%emt 0:00:08]} Qb4 {[%emt 0:02:10]} 36. Rd1 {[%emt 0:00:35]} Rxa4 {[%emt 0:00:57]} 37. Qe1 {[%emt 0:02:49]} Nxb3+ {[%emt 0:01:49]} 38. Nxb3 {[%emt 0:00:09]} Qxb3 {[%emt 0:00:12]} 39. Rc1 {[%emt 0:00:40]} Rba8 {[%emt 0:01:31]} 40. Qd2 {[%emt 0:00:30]} Qb4 {[%emt 0:00:52]} 41. Qg5 {[%emt 0:31:00]} Qd4+ {[%emt 0:30:36]} 42. Kb1 {[%emt 0:00:04]} Rb8+ {[%emt 0:00:48]} 43. Kc2 {[%emt 0:00:02]} Rxa2# {[%emt 0:00:16]} 0-1

[Event "94th FRA-ch Open B 2019"]
[Site "Chartres"]
[Date "2019.08.25"]
[Round "9.4"]
[White "Letemple, Frederic"]
[Black "Le Menelec, Erwan-Son"]
[Result "1-0"]
[ECO "A01"]
[WhiteElo "1890"]
[BlackElo "1986"]
[Annotator "NA"]
[PlyCount "55"]
[EventDate "2019.08.17"]
[EventType "swiss"]
[EventCountry "FRA"]
[SourceTitle "playchess.com"]
[Source "ChessBase"]
[SourceQuality "1"]
[TimeControl "40/5400+30:1800+30"]

1. b3 {[%emt 0:00:00]} e5 {[%emt 0:01:10]} 2. Bb2 {[%emt 0:00:00]} d6 {[%emt 0:01:05]} 3. e3 {[%emt 0:00:29]} Nf6 {[%emt 0:00:55]} 4. d4 {[%emt 0:03:42]} exd4 {[%emt 0:03:58]} 5. Bxd4 {[%emt 0:01:59]} Nc6 {[%emt 0:00:19]} 6. Bb5 {[%emt 0:00:11]} Bd7 {[%emt 0:01:28]} 7. Bb2 {[%emt 0:00:08]} Ne5 {[%emt 0:06:48]} 8. Be2 {[%emt 0:14:08]} Bc6 {[%emt 0:15:47]} 9. Nf3 {[%emt 0:08:23]} Nfd7 {[%emt 0:14:21]} 10. Nbd2 {[%emt 0:18:42]} b6 {[%emt 0:14:35]} 11. e4 {[%emt 0:08:06]} Bb7 {[%emt 0:07:18]} 12. Nxe5 {[%emt 0:05:20]} Nxe5 {[%emt 0:04:18]} 13. O-O {[%emt 0:03:49]} Qe7 {[%emt 0:03:31]} 14. f4 {[%emt 0:03:18]} Nd7 {[%emt 0:00:04]} 15. Bf3 {[%emt 0:01:54]} O-O-O {[%emt 0:00:03]} 16. a4 {[%emt 0:03:57]} Nc5 {[%emt 0:06:50]} 17. a5 {[%emt 0:02:31]} Nxe4 {[%emt 0:02:10]} 18. axb6 {[%emt 0:01:42]} axb6 {[%emt 0:01:21]} 19. Nxe4 {[%emt 0:01:24]} Bxe4 {[%emt 0:00:20]} 20. Qe2 {[%emt 0:00:47]} Bxf3 {[%emt 0:02:43]} 21. Qxf3 {[%emt 0:00:13]} d5 {[%emt 0:02:42]} 22. Ra7 {[%emt 0:02:54]} Qe4 {[%emt 0:02:55]} 23. Qh3+ {[%emt 0:07:36]} f5 {[%emt 0:00:35]} 24. Be5 {[%emt 0:00:25]} Bd6 {[%emt 0:00:47]} 25. Bxd6 {[%emt 0:00:26]} Qd4+ {[%emt 0:01:42]} 26. Kh1 {[%emt 0:00:25]} cxd6 {[%emt 0:00:29]} 27. Qxf5+ {[%emt 0:00:30]} Kb8 {[%emt 0:00:03]} 28. Qf7 {[%emt 0:11:01]} 1-0

[Event "94th FRA-ch Open B 2019"]
[Site "Chartres"]
[Date "2019.08.25"]
[Round "9.5"]
[White "Pinson, Alexis"]
[Black "Tribout, Alexandre"]
[Result "1-0"]
[ECO "B23"]
[WhiteElo "1841"]
[BlackElo "1811"]
[Annotator "NA"]
[PlyCount "119"]
[EventDate "2019.08.17"]
[EventType "swiss"]
[EventCountry "FRA"]
[SourceTitle "playchess.com"]
[Source "ChessBase"]
[SourceQuality "1"]
[TimeControl "40/5400+30:1800+30"]

1. e4 {[%emt 0:00:00]} c5 {[%emt 0:00:00]} 2. Nc3 {[%emt 0:00:00]} Nc6 {[%emt 0:00:00]} 3. Bb5 {[%emt 0:00:00]} Nd4 {[%emt 0:00:41]} 4. Bc4 {[%emt 0:00:00]} g6 {[%emt 0:02:05]} 5. Nf3 {[%emt 0:00:40]} Bg7 {[%emt 0:00:52]} 6. Nxd4 {[%emt 0:00:06]} cxd4 {[%emt 0:00:36]} 7. Qf3 {[%emt 0:00:06]} e6 {[%emt 0:14:17]} 8. Nb5 {[%emt 0:00:06]} d6 {[%emt 0:00:36]} 9. Qa3 {[%emt 0:00:03]} Bf8 {[%emt 0:07:05]} 10. Nxd4 {[%emt 0:02:17]} Bd7 {[%emt 0:00:40]} 11. Qd3 {[%emt 0:02:58]} a6 {[%emt 0:01:39]} 12. O-O {[%emt 0:01:15]} b5 {[%emt 0:00:53]} 13. Bb3 {[%emt 0:00:05]} Qb6 {[%emt 0:01:13]} 14. a4 {[%emt 0:01:22]} Bg7 {[%emt 0:01:15]} 15. Nf3 {[%emt 0:00:13]} Rc8 {[%emt 0:02:16]} 16. axb5 {[%emt 0:03:11]} Bxb5 {[%emt 0:00:31]} 17. Ba4 {[%emt 0:00:37]} Ne7 {[%emt 0:03:05]} 18. Bxb5+ {[%emt 0:00:34]} axb5 {[%emt 0:00:29]} 19. Qb3 {[%emt 0:03:41]} O-O {[%emt 0:02:11]} 20. d3 {[%emt 0:01:59]} Qc6 {[%emt 0:05:26]} 21. Ra7 {[%emt 0:01:39]} Rc7 {[%emt 0:02:01]} 22. Rxc7 {[%emt 0:01:27]} Qxc7 {[%emt 0:00:02]} 23. Be3 {[%emt 0:06:22]} Ra8 {[%emt 0:06:24]} 24. Bd4 {[%emt 0:02:56]} d5 {[%emt 0:03:03]} 25. Bxg7 {[%emt 0:01:57]} Kxg7 {[%emt 0:00:31]} 26. h3 {[%emt 0:03:10]} dxe4 {[%emt 0:02:26]} 27. dxe4 {[%emt 0:00:13]} Qc5 {[%emt 0:03:44]} 28. Rd1 {[%emt 0:06:38]} Ra7 {[%emt 0:02:32]} 29. Nd4 {[%emt 0:03:18]} b4 {[%emt 0:06:00]} 30. Qd3 {[%emt 0:18:46]} e5 {[%emt 0:07:28]} 31. Nf3 {[%emt 0:01:27]} Rc7 {[%emt 0:02:09]} 32. Rd2 {[%emt 0:00:42]} f6 {[%emt 0:06:07]} 33. Qd8 {[%emt 0:06:01]} Rc8 {[%emt 0:04:23]} 34. Qd7 {[%emt 0:00:48]} Rc7 {[%emt 0:00:41]} 35. Qe8 {[%emt 0:00:15]} Rc8 {[%emt 0:00:54]} 36. Rd8 {[%emt 0:00:34]} Rxd8 {[%emt 0:01:27]} 37. Qxd8 {[%emt 0:00:04]} Kf7 {[%emt 0:01:03]} 38. Qd3 {[%emt 0:00:25]} Qa5 {[%emt 0:03:44]} 39. Qc4+ {[%emt 0:02:13]} Kg7 {[%emt 0:02:06]} 40. Kh2 {[%emt 0:00:25]} Qb6 {[%emt 0:04:05]} 41. Kg1 {[%emt 0:32:33]} g5 {[%emt 0:05:27]} 42. c3 {[%emt 0:00:00]} bxc3 {[%emt 0:00:59]} 43. bxc3 {[%emt 0:00:00]} h5 {[%emt 0:05:30]} 44. Nd2 {[%emt 0:00:00]} g4 {[%emt 0:05:35]} 45. hxg4 {[%emt 0:00:00]} hxg4 {[%emt 0:00:07]} 46. Qd3 {[%emt 0:00:00]} Qe6 {[%emt 0:02:40]} 47. Nc4 {[%emt 0:00:00]} Ng6 {[%emt 0:04:29]} 48. Ne3 {[%emt 0:00:00]} Nf4 {[%emt 0:00:48]} 49. Qd1 {[%emt 0:00:00]} Qc6 {[%emt 0:02:44]} 50. Qxg4+ {[%emt 0:00:00]} Kf7 {[%emt 0:00:44]} 51. g3 {[%emt 0:00:00]} Nd3 {[%emt 0:05:45]} 52. Qh5+ {[%emt 0:00:00]} Ke6 {[%emt 0:01:16]} 53. Qf5+ {[%emt 0:00:00]} Kf7 {[%emt 0:00:22]} 54. Qh7+ {[%emt 0:00:00]} Ke6 {[%emt 0:00:25]} 55. Nd5 {[%emt 0:00:00]} Qc5 {[%emt 0:00:36]} 56. Qf5+ {[%emt 0:00:00]} Kd6 {[%emt 0:00:31]} 57. Qxf6+ {[%emt 0:00:00]} Kd7 {[%emt 0:00:09]} 58. Qb6 {[%emt 0:00:00]} Qc4 {[%emt 0:01:29]} 59. Qb7+ {[%emt 0:00:00]} Kd8 {[%emt 0:00:23]} 60. Qe7+ {[%emt 0:00:00]} 1-0

[Event "94th FRA-ch Open B 2019"]
[Site "Chartres"]
[Date "2019.08.25"]
[Round "9.6"]
[White "Clementz, Joel"]
[Black "Aubry, Justin"]
[Result "0-1"]
[ECO "B15"]
[WhiteElo "1969"]
[BlackElo "1915"]
[Annotator "NA"]
[PlyCount "120"]
[EventDate "2019.08.17"]
[EventType "swiss"]
[EventCountry "FRA"]
[SourceTitle "playchess.com"]
[Source "ChessBase"]
[SourceQuality "1"]
[TimeControl "40/5400+30:1800+30"]

1. e4 {[%emt 0:00:11]} c6 {[%emt 0:00:00]} 2. d4 {[%emt 0:00:18]} d5 {[%emt 0:00:00]} 3. Nc3 {[%emt 0:00:05]} dxe4 {[%emt 0:00:00]} 4. Nxe4 {[%emt 0:00:08]} Nf6 {[%emt 0:00:02]} 5. Nxf6+ {[%emt 0:00:09]} exf6 {[%emt 0:00:07]} 6. Bc4 {[%emt 0:00:43]} Bd6 {[%emt 0:00:36]} 7. Qe2+ {[%emt 0:02:49]} Qe7 {[%emt 0:00:08]} 8. Qxe7+ {[%emt 0:00:23]} Kxe7 {[%emt 0:00:05]} 9. Ne2 {[%emt 0:01:29]} Bf5 {[%emt 0:02:36]} 10. c3 {[%emt 0:02:18]} Be6 {[%emt 0:14:41]} 11. Bd3 {[%emt 0:01:42]} Rd8 {[%emt 0:01:19]} 12. Bf4 {[%emt 0:01:44]} f5 {[%emt 0:08:31]} 13. O-O {[%emt 0:02:01]} Kf6 {[%emt 0:07:48]} 14. h4 {[%emt 0:03:23]} Bxf4 {[%emt 0:01:38]} 15. Nxf4 {[%emt 0:00:15]} h6 {[%emt 0:11:09]} 16. Ne2 {[%emt 0:15:04]} c5 {[%emt 0:02:33]} 17. Rfd1 {[%emt 0:02:00]} c4 {[%emt 0:06:07]} 18. Bc2 {[%emt 0:13:31]} g5 {[%emt 0:00:11]} 19. hxg5+ {[%emt 0:01:08]} hxg5 {[%emt 0:00:07]} 20. f4 {[%emt 0:00:37]} g4 {[%emt 0:00:18]} 21. Ng3 {[%emt 0:00:33]} Rd5 {[%emt 0:05:46]} 22. b3 {[%emt 0:05:39]} b5 {[%emt 0:00:22]} 23. a4 {[%emt 0:01:15]} Nd7 {[%emt 0:04:46]} 24. b4 {[%emt 0:02:31]} Nb6 {[%emt 0:05:48]} 25. a5 {[%emt 0:01:24]} Nd7 {[%emt 0:01:20]} 26. Re1 {[%emt 0:05:16]} Rh8 {[%emt 0:03:35]} 27. Kf2 {[%emt 0:02:26]} Kg6 {[%emt 0:05:44]} 28. Rh1 {[%emt 0:00:25]} Rxh1 {[%emt 0:00:49]} 29. Rxh1 {[%emt 0:02:01]} Nf6 {[%emt 0:00:01]} 30. Re1 {[%emt 0:06:54]} Nd7 {[%emt 0:01:50]} 31. Nf1 {[%emt 0:01:16]} Nf6 {[%emt 0:03:16]} 32. g3 {[%emt 0:04:55]} a6 {[%emt 0:06:00]} 33. Ne3 {[%emt 0:01:25]} Rd6 {[%emt 0:03:29]} 34. Ke2 {[%emt 0:08:15]} Nd5 {[%emt 0:03:58]} 35. Nd1 {[%emt 0:02:43]} Rd8 {[%emt 0:00:41]} 36. Rh1 {[%emt 0:00:42]} Nf6 {[%emt 0:00:48]} 37. Kd2 {[%emt 0:03:15]} Nh5 {[%emt 0:01:06]} 38. Rg1 {[%emt 0:01:18]} Nf6 {[%emt 0:00:05]} 39. Ne3 {[%emt 0:01:14]} Rh8 {[%emt 0:00:31]} 40. Rg2 {[%emt 0:01:17]} Rh1 {[%emt 0:01:21]} 41. Rf2 {[%emt 0:34:02]} Rh3 {[%emt 0:02:05]} 42. Rg2 {[%emt 0:00:00]} Rh1 {[%emt 0:00:16]} 43. Ke2 {[%emt 0:00:00]} Rh5 {[%emt 0:02:59]} 44. Nf1 {[%emt 0:00:00]} Bd5 {[%emt 0:05:41]} 45. Rh2 {[%emt 0:00:00]} Rxh2+ {[%emt 0:00:05]} 46. Nxh2 {[%emt 0:00:00]} Be4 {[%emt 0:00:02]} 47. Kd2 {[%emt 0:00:00]} Bxc2 {[%emt 0:00:39]} 48. Kxc2 {[%emt 0:00:00]} Ne4 {[%emt 0:00:10]} 49. Nf1 {[%emt 0:00:00]} Kf6 {[%emt 0:01:52]} 50. Ne3 {[%emt 0:00:00]} Nxg3 {[%emt 0:08:54]} 51. Nxc4 {[%emt 0:00:00]} Nf1 {[%emt 0:00:28]} 52. Kd3 {[%emt 0:00:00]} bxc4+ {[%emt 0:02:37]} 53. Ke2 {[%emt 0:00:00]} Ng3+ {[%emt 0:01:23]} 54. Ke3 {[%emt 0:00:00]} Ne4 {[%emt 0:00:40]} 55. b5 {[%emt 0:00:00]} Nd6 {[%emt 0:01:31]} 56. bxa6 {[%emt 0:00:33]} Nb5 {[%emt 0:01:03]} 57. Kf2 {[%emt 0:00:40]} Ke7 {[%emt 0:00:18]} 58. Kg3 {[%emt 0:00:23]} Kd6 {[%emt 0:00:17]} 59. Kf2 {[%emt 0:00:15]} Kc7 {[%emt 0:00:33]} 60. Kg3 {[%emt 0:00:07]} Nxc3 {[%emt 0:00:30]} 0-1